Workbook

Sheet Data
A1: ID_Abattage | B1: Date_abattage | C1: Année | D1: Mois | E1: Jours | F1: Qté_livrée | G1: Acheteur | H1: Qté_carcasses_SIVAC | I1: Poids_net_kg | J1: Poids net GID (kg) 2 | K1: ECART (Kg) | L1: Taux de ressuage | M1: FIRCA | N1: INTER PORCI | O1: Prix_unitaire_FCFA | P1: Prix_global_FCFA | Q1: Avance_FCFA | R1: Reste_a_payer_FCFA | S1: Delai_paiement | T1: Pilote_SICS
A2: 1 | B2: 2025-03-01 | C2: =YEAR(Data[[#This Row],[Date_abattage]]) -> 2025 | D2: =TEXT(Data[[#This Row],[Date_abattage]],"mmmm") -> mars | E2: =DAY(Data[[#This Row],[Date_abattage]]) -> 1 | F2: 4 | G2: Boucherie | H2: 4 | I2: 250 | O2: 2000 | P2: =I2*O2 -> 500000 | Q2: 100000 | R2: =P2-Q2 -> 400000 | S2: 2025-02-01 | T2: Paul
A3: 2 | B3: 2025-03-01 | C3: =YEAR(Data[[#This Row],[Date_abattage]]) -> 2025 | D3: =TEXT(Data[[#This Row],[Date_abattage]],"mmmm") -> mars | E3: =DAY(Data[[#This Row],[Date_abattage]]) -> 1 | F3: 3 | G3: Marché | H3: 3 | I3: 180 | O3: 2000 | P3: 360000 | Q3: 0 | R3: =P3-Q3 -> 360000 | S3: 2025-02-02 | T3: Paul
A4: 3 | B4: 2025-03-02 | C4: =YEAR(Data[[#This Row],[Date_abattage]]) -> 2025 | D4: =TEXT(Data[[#This Row],[Date_abattage]],"mmmm") -> mars | E4: =DAY(Data[[#This Row],[Date_abattage]]) -> 2 | F4: 5 | G4: SOCIAM | H4: 5 | I4: 320 | O4: 2000 | P4: =I4*O4 -> 640000 | Q4: 200000 | R4: =P4-Q4 -> 440000 | S4: 2025-02-03 | T4: Paul
A5: 4 | B5: 2025-03-02 | C5: =YEAR(Data[[#This Row],[Date_abattage]]) -> 2025 | D5: =TEXT(Data[[#This Row],[Date_abattage]],"mmmm") -> mars | E5: =DAY(Data[[#This Row],[Date_abattage]]) -> 2 | F5: 2 | G5: Gros | H5: 2 | I5: 140 | O5: 2000 | P5: 280000 | Q5: 100000 | R5: 180000 | S5: 2025-02-04 | T5: Paul
A6: 5 | B6: 2025-03-03 | C6: =YEAR(Data[[#This Row],[Date_abattage]]) -> 2025 | D6: =TEXT(Data[[#This Row],[Date_abattage]],"mmmm") -> mars | E6: =DAY(Data[[#This Row],[Date_abattage]]) -> 3 | F6: 6 | G6: Marché | H6: 6 | I6: 390 | O6: 2000 | P6: 780000 | Q6: 250000 | R6: 530000 | S6: 2025-02-05 | T6: Paul
A7: 6 | B7: 2025-03-03 | C7: =YEAR(Data[[#This Row],[Date_abattage]]) -> 2025 | D7: =TEXT(Data[[#This Row],[Date_abattage]],"mmmm") -> mars | E7: =DAY(Data[[#This Row],[Date_abattage]]) -> 3 | F7: 4 | G7: Boucherie | H7: 4 | I7: 250 | O7: 2000 | P7: 500000 | Q7: 100000 | R7: =P7-Q7 -> 400000 | S7: 2025-02-06 | T7: Paul
A8: 7 | B8: 2025-03-03 | C8: =YEAR(Data[[#This Row],[Date_abattage]]) -> 2025 | D8: =TEXT(Data[[#This Row],[Date_abattage]],"mmmm") -> mars | E8: =DAY(Data[[#This Row],[Date_abattage]]) -> 3 | F8: 3 | G8: Marché | H8: 3 | I8: 180 | O8: 2000 | P8: 360000 | Q8: 0 | R8: =P8-Q8 -> 360000 | S8: 2025-02-07 | T8: Paul
A9: 8 | B9: 2025-03-10 | C9: =YEAR(Data[[#This Row],[Date_abattage]]) -> 2025 | D9: =TEXT(Data[[#This Row],[Date_abattage]],"mmmm") -> mars | E9: =DAY(Data[[#This Row],[Date_abattage]]) -> 10 | F9: 5 | G9: SOCIAM | H9: 5 | I9: 320 | O9: 2000 | P9: 640000 | Q9: 200000 | R9: =P9-Q9 -> 440000 | S9: 2025-02-08 | T9: Paul
A10: 9 | B10: 2025-03-10 | C10: =YEAR(Data[[#This Row],[Date_abattage]]) -> 2025 | D10: =TEXT(Data[[#This Row],[Date_abattage]],"mmmm") -> mars | E10: =DAY(Data[[#This Row],[Date_abattage]]) -> 10 | F10: 2 | G10: Gros | H10: 2 | I10: 140 | O10: 2000 | P10: 280000 | Q10: 100000 | R10: =P10-Q10 -> 180000 | S10: 2025-02-09 | T10: Paul
A11: 10 | B11: 2025-03-17 | C11: =YEAR(Data[[#This Row],[Date_abattage]]) -> 2025 | D11: =TEXT(Data[[#This Row],[Date_abattage]],"mmmm") -> mars | E11: =DAY(Data[[#This Row],[Date_abattage]]) -> 17 | F11: 6 | G11: Marché | H11: 6 | I11: 390 | O11: 2000 | P11: 780000 | Q11: 250000 | R11: 530000 | S11: 2025-02-10 | T11: Paul
A12: 11 | B12: 2025-03-17 | C12: =YEAR(Data[[#This Row],[Date_abattage]]) -> 2025 | D12: =TEXT(Data[[#This Row],[Date_abattage]],"mmmm") -> mars | E12: =DAY(Data[[#This Row],[Date_abattage]]) -> 17 | F12: 4 | G12: Boucherie | H12: 4 | I12: 250 | O12: 2000 | P12: 500000 | Q12: 100000 | R12: =P12-Q12 -> 400000 | S12: 2025-02-11 | T12: Paul
A13: 12 | B13: 2025-03-17 | C13: =YEAR(Data[[#This Row],[Date_abattage]]) -> 2025 | D13: =TEXT(Data[[#This Row],[Date_abattage]],"mmmm") -> mars | E13: =DAY(Data[[#This Row],[Date_abattage]]) -> 17 | F13: 3 | G13: Marché | H13: 3 | I13: 180 | O13: 2000 | P13: 360000 | Q13: 0 | R13: =P13-Q13 -> 360000 | S13: 2025-02-12 | T13: Paul
A14: 13 | B14: 2025-03-24 | C14: =YEAR(Data[[#This Row],[Date_abattage]]) -> 2025 | D14: =TEXT(Data[[#This Row],[Date_abattage]],"mmmm") -> mars | E14: =DAY(Data[[#This Row],[Date_abattage]]) -> 24 | F14: 5 | G14: SOCIAM | H14: 5 | I14: 320 | O14: 2000 | P14: 640000 | Q14: 200000 | R14: =P14-Q14 -> 440000 | S14: 2025-02-13 | T14: Paul
A15: 14 | B15: 2025-03-24 | C15: =YEAR(Data[[#This Row],[Date_abattage]]) -> 2025 | D15: =TEXT(Data[[#This Row],[Date_abattage]],"mmmm") -> mars | E15: =DAY(Data[[#This Row],[Date_abattage]]) -> 24 | F15: 2 | G15: Gros | H15: 2 | I15: 140 | O15: 2000 | P15: 280000 | Q15: 100000 | R15: =P15-Q15 -> 180000 | S15: 2025-02-14 | T15: Paul
A16: 15 | B16: 2025-03-24 | C16: =YEAR(Data[[#This Row],[Date_abattage]]) -> 2025 | D16: =TEXT(Data[[#This Row],[Date_abattage]],"mmmm") -> mars | E16: =DAY(Data[[#This Row],[Date_abattage]]) -> 24 | F16: 6 | G16: Marché | H16: 6 | I16: 390 | O16: 2000 | P16: 780000 | Q16: 250000 | R16: 530000 | S16: 2025-02-15 | T16: Paul
A17: 16 | B17: 2025-03-24 | C17: =YEAR(Data[[#This Row],[Date_abattage]]) -> 2025 | D17: =TEXT(Data[[#This Row],[Date_abattage]],"mmmm") -> mars | E17: =DAY(Data[[#This Row],[Date_abattage]]) -> 24 | F17: =80+6+8 -> 94 | G17: BAZ | H17: 8 | I17: 602 | O17: 2200 | P17: =H17*O17 -> 17600 | Q17: 17600 | R17: =P17-Q17 -> 0 | S17: 2025-02-16 | T17: Marc
A18: 17 | B18: 2025-03-24 | C18: =YEAR(Data[[#This Row],[Date_abattage]]) -> 2025 | D18: =TEXT(Data[[#This Row],[Date_abattage]],"mmmm") -> mars | E18: =DAY(Data[[#This Row],[Date_abattage]]) -> 24 | F18: =80+6+8 -> 94 | G18: BCS | H18: 5 | I18: 390.2 | O18: 2200 | P18: =H18*O18 -> 11000 | Q18: 11000 | R18: 0 | S18: 2025-02-17 | T18: Marc
A19: 18 | B19: 2025-04-01 | C19: =YEAR(Data[[#This Row],[Date_abattage]]) -> 2025 | D19: =TEXT(Data[[#This Row],[Date_abattage]],"mmmm") -> avril | E19: =DAY(Data[[#This Row],[Date_abattage]]) -> 1 | F19: 94 | G19: GID | H19: 56 | I19: 4477.8 | J19: 4442.8 | K19: =I19-J19 -> 35 | L19: =+K19/I19 -> 0.00781633838 | M19: =+H19*200 -> 11200 | N19: =+H19*400 -> 22400 | O19: 2200 | P19: =(O19*I19)-M19-N19 -> 9817560 | Q19: 9809959.992 | R19: =P19-Q19 -> 7600.007816 | S19: 2025-02-18 | T19: Marc
A20: 19 | B20: 2025-04-01 | C20: =YEAR(Data[[#This Row],[Date_abattage]]) -> 2025 | D20: =TEXT(Data[[#This Row],[Date_abattage]],"mmmm") -> avril | E20: =DAY(Data[[#This Row],[Date_abattage]]) -> 1 | F20: 94 | G20: TAUHET | H20: 25 | I20: 1920.8 | O20: 2200 | P20: =+H20*O20 -> 55000 | Q20: 55000 | R20: =P20-Q20 -> 0 | S20: 2025-02-19 | T20: Marc
A21: 20 | B21: 2025-04-08 | C21: =YEAR(Data[[#This Row],[Date_abattage]]) -> 2025 | D21: =TEXT(Data[[#This Row],[Date_abattage]],"mmmm") -> avril | E21: =DAY(Data[[#This Row],[Date_abattage]]) -> 8 | F21: 100 | G21: FLAN | H21: 10 | I21: 798.2 | O21: 2200 | P21: 22000 | Q21: 22000 | R21: 0 | S21: 2025-02-20 | T21: Marc
A22: 21 | B22: 2025-04-08 | C22: =YEAR(Data[[#This Row],[Date_abattage]]) -> 2025 | D22: =TEXT(Data[[#This Row],[Date_abattage]],"mmmm") -> avril | E22: =DAY(Data[[#This Row],[Date_abattage]]) -> 8 | F22: 100 | G22: BAZ | H22: 8 | I22: 591.4 | O22: 2200 | P22: 17600 | Q22: 17600 | R22: 0 | S22: 2025-02-21 | T22: Marc
A23: 22 | B23: 2025-04-08 | C23: =YEAR(Data[[#This Row],[Date_abattage]]) -> 2025 | D23: =TEXT(Data[[#This Row],[Date_abattage]],"mmmm") -> avril | E23: =DAY(Data[[#This Row],[Date_abattage]]) -> 8 | F23: 100 | G23: FRANCOIS | H23: 6 | I23: 450.8 | O23: 2200 | P23: 13200 | Q23: 13200 | R23: 0 | S23: 2025-02-22 | T23: Marc
A24: 23 | B24: 2025-04-15 | C24: =YEAR(Data[[#This Row],[Date_abattage]]) -> 2025 | D24: =TEXT(Data[[#This Row],[Date_abattage]],"mmmm") -> avril | E24: =DAY(Data[[#This Row],[Date_abattage]]) -> 15 | F24: 100 | G24: NAZAIRE | H24: 3 | I24: 226.4 | O24: 2200 | P24: 6600 | Q24: 6600 | R24: 0 | S24: 2025-02-23 | T24: Marc
A25: 24 | B25: 2025-04-15 | C25: =YEAR(Data[[#This Row],[Date_abattage]]) -> 2025 | D25: =TEXT(Data[[#This Row],[Date_abattage]],"mmmm") -> avril | E25: =DAY(Data[[#This Row],[Date_abattage]]) -> 15 | F25: 100 | G25: HUGUETTE | H25: 10 | I25: 736 | O25: 2200 | P25: 22000 | Q25: 22000 | R25: 0 | S25: 2025-02-24 | T25: Marc
A26: 25 | B26: 2025-04-15 | C26: =YEAR(Data[[#This Row],[Date_abattage]]) -> 2025 | D26: =TEXT(Data[[#This Row],[Date_abattage]],"mmmm") -> avril | E26: =DAY(Data[[#This Row],[Date_abattage]]) -> 15 | F26: 100 | G26: TAITAI | H26: 5 | I26: 379 | O26: 2200 | P26: 11000 | Q26: 11000 | R26: 0 | S26: 2025-02-25 | T26: Marc
A27: 26 | B27: 2025-04-15 | C27: =YEAR(Data[[#This Row],[Date_abattage]]) -> 2025 | D27: =TEXT(Data[[#This Row],[Date_abattage]],"mmmm") -> avril | E27: =DAY(Data[[#This Row],[Date_abattage]]) -> 15 | F27: 100 | G27: VICTORINE | H27: 15 | I27: 1150.8 | O27: 2200 | P27: 33000 | Q27: 33000 | R27: 0 | S27: 2025-02-26 | T27: Marc
A28: 27 | B28: 2025-04-15 | C28: =YEAR(Data[[#This Row],[Date_abattage]]) -> 2025 | D28: =TEXT(Data[[#This Row],[Date_abattage]],"mmmm") -> avril | E28: =DAY(Data[[#This Row],[Date_abattage]]) -> 15 | F28: 100 | G28: BCS | H28: 5 | I28: 359.4 | O28: 2200 | P28: 11000 | Q28: 11000 | R28: 0 | S28: 2025-02-27 | T28: Marc
A29: 28 | B29: 2025-04-16 | C29: =YEAR(Data[[#This Row],[Date_abattage]]) -> 2025 | D29: =TEXT(Data[[#This Row],[Date_abattage]],"mmmm") -> avril | E29: =DAY(Data[[#This Row],[Date_abattage]]) -> 16 | F29: 100 | G29: TAUHET | H29: 25 | I29: 1903.4 | O29: 2200 | P29: 55000 | Q29: 55000 | R29: 0 | S29: 2025-02-28 | T29: Jean
A30: 29 | B30: 2025-04-16 | C30: =YEAR(Data[[#This Row],[Date_abattage]]) -> 2025 | D30: =TEXT(Data[[#This Row],[Date_abattage]],"mmmm") -> avril | E30: =DAY(Data[[#This Row],[Date_abattage]]) -> 16 | F30: 100 | G30: ADOU | H30: 5 | I30: 366.8 | O30: 2200 | P30: 11000 | Q30: 11000 | R30: =P30-Q30 -> 0 | S30: 2025-03-01 | T30: Jean
A31: 30 | B31: 2025-04-16 | C31: =YEAR(Data[[#This Row],[Date_abattage]]) -> 2025 | D31: =TEXT(Data[[#This Row],[Date_abattage]],"mmmm") -> avril | E31: =DAY(Data[[#This Row],[Date_abattage]]) -> 16 | F31: 100 | G31: VANESSA | H31: 3 | I31: 232.4 | O31: 2200 | P31: 6600 | Q31: 6600 | R31: 0 | S31: 2025-03-02 | T31: Jean
A32: 31 | B32: 2025-04-16 | C32: =YEAR(Data[[#This Row],[Date_abattage]]) -> 2025 | D32: =TEXT(Data[[#This Row],[Date_abattage]],"mmmm") -> avril | E32: =DAY(Data[[#This Row],[Date_abattage]]) -> 16 | F32: =70+1 -> 71 | G32: BAZ | H32: 2 | I32: 147.2 | O32: 2200 | P32: 4400 | Q32: 4400 | R32: 0 | S32: 2025-03-03 | T32: Jean
A33: 32 | B33: 2025-04-16 | C33: =YEAR(Data[[#This Row],[Date_abattage]]) -> 2025 | D33: =TEXT(Data[[#This Row],[Date_abattage]],"mmmm") -> avril | E33: =DAY(Data[[#This Row],[Date_abattage]]) -> 16 | F33: =70+1 -> 71 | G33: TAITAI | H33: 5 | I33: 380 | O33: 2200 | P33: 11000 | Q33: 11000 | R33: 0 | S33: 2025-03-04 | T33: Jean
A34: 33 | B34: 2025-04-25 | C34: =YEAR(Data[[#This Row],[Date_abattage]]) -> 2025 | D34: =TEXT(Data[[#This Row],[Date_abattage]],"mmmm") -> avril | E34: =DAY(Data[[#This Row],[Date_abattage]]) -> 25 | F34: 71 | G34: VICTORINE | H34: 20 | I34: 1475.8 | O34: 2200 | P34: 44000 | Q34: 44000 | R34: 0 | S34: 2025-03-05 | T34: Jean
A35: 34 | B35: 2025-04-25 | C35: =YEAR(Data[[#This Row],[Date_abattage]]) -> 2025 | D35: =TEXT(Data[[#This Row],[Date_abattage]],"mmmm") -> avril | E35: =DAY(Data[[#This Row],[Date_abattage]]) -> 25 | F35: 71 | G35: TAITAI | H35: 5 | I35: 366.2 | O35: 2200 | P35: 11000 | Q35: 11000 | R35: 0 | S35: 2025-03-06 | T35: Jean
A36: 35 | B36: 2025-04-25 | C36: =YEAR(Data[[#This Row],[Date_abattage]]) -> 2025 | D36: =TEXT(Data[[#This Row],[Date_abattage]],"mmmm") -> avril | E36: =DAY(Data[[#This Row],[Date_abattage]]) -> 25 | F36: 71 | G36: HUGUETTE | H36: 5 | I36: 368.6 | O36: 2200 | P36: 11000 | Q36: 11000 | R36: 0 | S36: 2025-03-07 | T36: Jean
A37: 36 | B37: 2025-04-25 | C37: =YEAR(Data[[#This Row],[Date_abattage]]) -> 2025 | D37: =TEXT(Data[[#This Row],[Date_abattage]],"mmmm") -> avril | E37: =DAY(Data[[#This Row],[Date_abattage]]) -> 25 | F37: 71 | G37: FLAN | H37: 10 | I37: 751.6 | O37: 2200 | P37: 22000 | Q37: 22000 | R37: 0 | S37: 2025-03-08 | T37: Jean
A38: 37 | B38: 2025-04-25 | C38: =YEAR(Data[[#This Row],[Date_abattage]]) -> 2025 | D38: =TEXT(Data[[#This Row],[Date_abattage]],"mmmm") -> avril | E38: =DAY(Data[[#This Row],[Date_abattage]]) -> 25 | F38: 71 | G38: VANESSA | H38: 3 | I38: 223 | O38: 2200 | P38: 6600 | Q38: 6600 | R38: 0 | S38: 2025-03-09 | T38: Jean
A39: 38 | B39: 2025-04-25 | C39: =YEAR(Data[[#This Row],[Date_abattage]]) -> 2025 | D39: =TEXT(Data[[#This Row],[Date_abattage]],"mmmm") -> avril | E39: =DAY(Data[[#This Row],[Date_abattage]]) -> 25 | F39: 71 | G39: INNOCENT | H39: 1 | I39: 209.4 | O39: 2200 | P39: 2200 | Q39: 2200 | R39: 0 | S39: 2025-03-10 | T39: Jean
A40: 39 | B40: 2025-04-25 | C40: =YEAR(Data[[#This Row],[Date_abattage]]) -> 2025 | D40: =TEXT(Data[[#This Row],[Date_abattage]],"mmmm") -> avril | E40: =DAY(Data[[#This Row],[Date_abattage]]) -> 25 | F40: 71 | G40: INNOCENT | H40: 5 | I40: 392.6 | O40: 2200 | P40: 11000 | Q40: 11000 | R40: 0 | S40: 2025-03-11 | T40: Jean
A41: 40 | B41: 2025-05-02 | C41: =YEAR(Data[[#This Row],[Date_abattage]]) -> 2025 | D41: =TEXT(Data[[#This Row],[Date_abattage]],"mmmm") -> mai | E41: =DAY(Data[[#This Row],[Date_abattage]]) -> 2 | F41: 71 | G41: PARFAIT | H41: 5 | I41: 379.4 | O41: 2200 | P41: 11000 | Q41: 11000 | R41: 0 | S41: 2025-03-12 | T41: Jean
A42: 41 | B42: 2025-05-02 | C42: =YEAR(Data[[#This Row],[Date_abattage]]) -> 2025 | D42: =TEXT(Data[[#This Row],[Date_abattage]],"mmmm") -> mai | E42: =DAY(Data[[#This Row],[Date_abattage]]) -> 2 | F42: 71 | G42: PASCAL | H42: 11 | I42: 830.4 | O42: 2200 | P42: 24200 | Q42: 24200 | R42: 0 | S42: 2025-03-13 | T42: Jean
A43: 42 | B43: 2025-05-02 | C43: =YEAR(Data[[#This Row],[Date_abattage]]) -> 2025 | D43: =TEXT(Data[[#This Row],[Date_abattage]],"mmmm") -> mai | E43: =DAY(Data[[#This Row],[Date_abattage]]) -> 2 | F43: 71 | G43: FRANCOIS | H43: 4 | I43: 260.8 | O43: 2200 | P43: 8800 | Q43: 8800 | R43: 0 | S43: 2025-03-14 | T43: Jean
A44: 43 | B44: 2025-05-02 | C44: =YEAR(Data[[#This Row],[Date_abattage]]) -> 2025 | D44: =TEXT(Data[[#This Row],[Date_abattage]],"mmmm") -> mai | E44: =DAY(Data[[#This Row],[Date_abattage]]) -> 2 | F44: 100 | G44: NAZAIRE | H44: 2 | I44: 138.6 | O44: 2200 | P44: 4400 | Q44: 4400 | R44: 0 | S44: 2025-03-15 | T44: Jean
A45: 44 | B45: 2025-05-02 | C45: =YEAR(Data[[#This Row],[Date_abattage]]) -> 2025 | D45: =TEXT(Data[[#This Row],[Date_abattage]],"mmmm") -> mai | E45: =DAY(Data[[#This Row],[Date_abattage]]) -> 2 | F45: 100 | G45: FRANCOIS | H45: 3 | I45: 225.2 | O45: 2200 | P45: 6600 | Q45: 6600 | R45: 0 | S45: 2025-03-16 | T45: Jean
A46: 45 | B46: 2025-05-02 | C46: =YEAR(Data[[#This Row],[Date_abattage]]) -> 2025 | D46: =TEXT(Data[[#This Row],[Date_abattage]],"mmmm") -> mai | E46: =DAY(Data[[#This Row],[Date_abattage]]) -> 2 | F46: 100 | G46: BCS | H46: 8 | I46: 585.4 | O46: 2200 | P46: 17600 | Q46: 17600 | R46: 0 | S46: 2025-03-17 | T46: Jean
A47: 46 | B47: 2025-05-02 | C47: =YEAR(Data[[#This Row],[Date_abattage]]) -> 2025 | D47: =TEXT(Data[[#This Row],[Date_abattage]],"mmmm") -> mai | E47: =DAY(Data[[#This Row],[Date_abattage]]) -> 2 | F47: 100 | G47: ADOU | H47: 5 | I47: 383.2 | O47: 2200 | P47: 11000 | Q47: 11000 | R47: 0 | S47: 2025-03-18 | T47: Jean
A48: 47 | B48: 2025-05-12 | C48: =YEAR(Data[[#This Row],[Date_abattage]]) -> 2025 | D48: =TEXT(Data[[#This Row],[Date_abattage]],"mmmm") -> mai | E48: =DAY(Data[[#This Row],[Date_abattage]]) -> 12 | F48: 100 | G48: VICTORINE | H48: 6 | I48: 415.6 | O48: 2200 | P48: 13200 | Q48: 13200 | R48: 0 | S48: 2025-03-19 | T48: Jean
A49: 48 | B49: 2025-05-12 | C49: =YEAR(Data[[#This Row],[Date_abattage]]) -> 2025 | D49: =TEXT(Data[[#This Row],[Date_abattage]],"mmmm") -> mai | E49: =DAY(Data[[#This Row],[Date_abattage]]) -> 12 | F49: 100 | G49: BAZ | H49: 15 | I49: 1124.4 | O49: 2200 | P49: 33000 | Q49: 33000 | R49: =P49-Q49 -> 0 | S49: 2025-03-20 | T49: Jean
A50: 49 | B50: 2025-05-12 | C50: =YEAR(Data[[#This Row],[Date_abattage]]) -> 2025 | D50: =TEXT(Data[[#This Row],[Date_abattage]],"mmmm") -> mai | E50: =DAY(Data[[#This Row],[Date_abattage]]) -> 12 | F50: 100 | G50: VANESSA | H50: 3 | I50: 231.4 | O50: 2200 | P50: 6600 | Q50: 6600 | R50: 0 | S50: 2025-03-21 | T50: Jean
A51: 50 | B51: 2025-05-12 | C51: =YEAR(Data[[#This Row],[Date_abattage]]) -> 2025 | D51: =TEXT(Data[[#This Row],[Date_abattage]],"mmmm") -> mai | E51: =DAY(Data[[#This Row],[Date_abattage]]) -> 12 | F51: 100 | G51: TAUHET | H51: 30 | I51: 2187.2 | O51: 2200 | P51: 66000 | Q51: 66000 | R51: 0 | S51: 2025-03-22 | T51: Jean
A52: 51 | B52: 2025-05-12 | C52: =YEAR(Data[[#This Row],[Date_abattage]]) -> 2025 | D52: =TEXT(Data[[#This Row],[Date_abattage]],"mmmm") -> mai | E52: =DAY(Data[[#This Row],[Date_abattage]]) -> 12 | F52: 100 | G52: GID | H52: 25 | I52: 1834.4 | J52: 1820 | K52: =I52-J52 -> 14.4 | L52: =+K52/I52 -> 0.007849978195 | M52: =+H52*200 -> 5000 | N52: =+H52*400 -> 10000 | O52: 2200 | P52: =+(O52*I52)-M52-N52 -> 4020680 | Q52: 3930679.992 | R52: =P52-Q52 -> 90000.00785 | S52: 2025-03-23 | T52: Jean
A53: 52 | B53: 2025-05-12 | C53: =YEAR(Data[[#This Row],[Date_abattage]]) -> 2025 | D53: =TEXT(Data[[#This Row],[Date_abattage]],"mmmm") -> mai | E53: =DAY(Data[[#This Row],[Date_abattage]]) -> 12 | F53: =80+12 -> 92 | G53: HUGUETTE | H53: 8 | I53: 593 | O53: 2200 | P53: =+H53*O53 -> 17600 | Q53: 17600 | R53: 0 | S53: 2025-03-24 | T53: Jean
A54: 53 | B54: 2025-05-12 | C54: =YEAR(Data[[#This Row],[Date_abattage]]) -> 2025 | D54: =TEXT(Data[[#This Row],[Date_abattage]],"mmmm") -> mai | E54: =DAY(Data[[#This Row],[Date_abattage]]) -> 12 | F54: =80+12 -> 92 | G54: TAITAI | H54: 5 | I54: 378 | O54: 2200 | P54: 11000 | Q54: 11000 | R54: 0 | S54: 2025-03-25 | T54: Jean
A55: 54 | B55: 2025-05-12 | C55: =YEAR(Data[[#This Row],[Date_abattage]]) -> 2025 | D55: =TEXT(Data[[#This Row],[Date_abattage]],"mmmm") -> mai | E55: =DAY(Data[[#This Row],[Date_abattage]]) -> 12 | F55: 92 | G55: VICTORINE | H55: 5 | I55: 380.8 | O55: 2200 | P55: 11000 | Q55: 11000 | R55: 0 | S55: 2025-03-26 | T55: Jean
A56: 55 | B56: 2025-05-12 | C56: =YEAR(Data[[#This Row],[Date_abattage]]) -> 2025 | D56: =TEXT(Data[[#This Row],[Date_abattage]],"mmmm") -> mai | E56: =DAY(Data[[#This Row],[Date_abattage]]) -> 12 | F56: 92 | G56: PARFAIT | H56: 5 | I56: 357.4 | O56: 2200 | P56: 11000 | Q56: 11000 | R56: 0 | S56: 2025-03-27 | T56: Jean
A57: 56 | B57: 2025-05-12 | C57: =YEAR(Data[[#This Row],[Date_abattage]]) -> 2025 | D57: =TEXT(Data[[#This Row],[Date_abattage]],"mmmm") -> mai | E57: =DAY(Data[[#This Row],[Date_abattage]]) -> 12 | F57: 92 | G57: VANESSA | H57: 3 | I57: 220 | O57: 2200 | P57: 6600 | Q57: 6600 | R57: 0 | S57: 2025-03-28 | T57: Jean
A58: 57 | B58: 2025-05-19 | C58: =YEAR(Data[[#This Row],[Date_abattage]]) -> 2025 | D58: =TEXT(Data[[#This Row],[Date_abattage]],"mmmm") -> mai | E58: =DAY(Data[[#This Row],[Date_abattage]]) -> 19 | F58: 92 | G58: FRANCOIS | H58: 5 | I58: 363.2 | O58: 2200 | P58: 11000 | Q58: 11000 | R58: 0 | S58: 2025-03-29 | T58: Jean
A59: 58 | B59: 2025-05-19 | C59: =YEAR(Data[[#This Row],[Date_abattage]]) -> 2025 | D59: =TEXT(Data[[#This Row],[Date_abattage]],"mmmm") -> mai | E59: =DAY(Data[[#This Row],[Date_abattage]]) -> 19 | F59: 92 | G59: FLAN | H59: 5 | I59: 368.4 | O59: 2200 | P59: 11000 | Q59: 11000 | R59: 0 | S59: 2025-03-30 | T59: Jean
A60: 59 | B60: 2025-05-19 | C60: =YEAR(Data[[#This Row],[Date_abattage]]) -> 2025 | D60: =TEXT(Data[[#This Row],[Date_abattage]],"mmmm") -> mai | E60: =DAY(Data[[#This Row],[Date_abattage]]) -> 19 | F60: 92 | G60: GID | H60: 30 | I60: 2955 | M60: =+H60*200 -> 6000 | N60: =+H60*400 -> 12000 | O60: 2200 | P60: =+(O60*H60)-M60-N60 -> 48000 | Q60: 40000 | R60: 8000 | S60: 2025-03-31 | T60: Jean
A61: 60 | B61: 2025-05-19 | C61: =YEAR(Data[[#This Row],[Date_abattage]]) -> 2025 | D61: =TEXT(Data[[#This Row],[Date_abattage]],"mmmm") -> mai | E61: =DAY(Data[[#This Row],[Date_abattage]]) -> 19 | F61: 20 | G61: KONE | H61: 3 | I61: 228 | O61: 2200 | P61: =+H61*O61 -> 6600 | Q61: 6600 | R61: 0 | S61: 2025-04-01 | T61: Jean
A62: 61 | B62: 2025-05-19 | C62: =YEAR(Data[[#This Row],[Date_abattage]]) -> 2025 | D62: =TEXT(Data[[#This Row],[Date_abattage]],"mmmm") -> mai | E62: =DAY(Data[[#This Row],[Date_abattage]]) -> 19 | F62: 20 | G62: FLAN | H62: 10 | I62: 729.4 | O62: 2200 | P62: 22000 | Q62: 22000 | R62: 0 | S62: 2025-04-02 | T62: Jean
A63: 62 | B63: 2025-05-19 | C63: =YEAR(Data[[#This Row],[Date_abattage]]) -> 2025 | D63: =TEXT(Data[[#This Row],[Date_abattage]],"mmmm") -> mai | E63: =DAY(Data[[#This Row],[Date_abattage]]) -> 19 | F63: 20 | G63: FRANCOIS | H63: 3 | I63: 222.6 | O63: 2200 | P63: 6600 | Q63: 6600 | R63: 0 | S63: 2025-04-03 | T63: Jean
A64: 63 | B64: 2025-05-28 | C64: =YEAR(Data[[#This Row],[Date_abattage]]) -> 2025 | D64: =TEXT(Data[[#This Row],[Date_abattage]],"mmmm") -> mai | E64: =DAY(Data[[#This Row],[Date_abattage]]) -> 28 | F64: 20 | G64: VICTORINE | H64: 10 | I64: 739 | O64: 2200 | P64: 22000 | Q64: 22000 | R64: 0 | S64: 2025-04-04 | T64: Jean
A65: 64 | B65: 2025-05-28 | C65: =YEAR(Data[[#This Row],[Date_abattage]]) -> 2025 | D65: =TEXT(Data[[#This Row],[Date_abattage]],"mmmm") -> mai | E65: =DAY(Data[[#This Row],[Date_abattage]]) -> 28 | F65: 20 | G65: ADOU | H65: 5 | I65: 369.6 | O65: 2200 | P65: 11000 | Q65: 11000 | R65: 0 | S65: 2025-04-05 | T65: Jean
A66: 65 | B66: 2025-05-28 | C66: =YEAR(Data[[#This Row],[Date_abattage]]) -> 2025 | D66: =TEXT(Data[[#This Row],[Date_abattage]],"mmmm") -> mai | E66: =DAY(Data[[#This Row],[Date_abattage]]) -> 28 | F66: 20 | G66: YAH LOUISE | H66: 3 | I66: 269.8 | O66: 2200 | P66: 6600 | Q66: 6600 | R66: 0 | S66: 2025-04-06 | T66: Jean
A67: 66 | B67: 2025-05-28 | C67: =YEAR(Data[[#This Row],[Date_abattage]]) -> 2025 | D67: =TEXT(Data[[#This Row],[Date_abattage]],"mmmm") -> mai | E67: =DAY(Data[[#This Row],[Date_abattage]]) -> 28 | F67: 20 | G67: ALEXIS SOCOCE | H67: 15 | I67: 1070.4 | O67: 2200 | P67: 33000 | Q67: 33000 | R67: 0 | S67: 2025-04-07 | T67: Jean
A68: 67 | B68: 2025-05-28 | C68: =YEAR(Data[[#This Row],[Date_abattage]]) -> 2025 | D68: =TEXT(Data[[#This Row],[Date_abattage]],"mmmm") -> mai | E68: =DAY(Data[[#This Row],[Date_abattage]]) -> 28 | F68: 100 | G68: BAZ | H68: 10 | I68: 736.6 | O68: 2200 | P68: 22000 | Q68: 22000 | R68: 0 | S68: 2025-04-08 | T68: Jean
A69: 68 | B69: 2025-05-28 | C69: =YEAR(Data[[#This Row],[Date_abattage]]) -> 2025 | D69: =TEXT(Data[[#This Row],[Date_abattage]],"mmmm") -> mai | E69: =DAY(Data[[#This Row],[Date_abattage]]) -> 28 | F69: 100 | G69: VANESSA | H69: 3 | I69: 211.8 | O69: 2200 | P69: 6600 | Q69: 6600 | R69: 0 | S69: 2025-04-09 | T69: Jean
A70: 69 | B70: 2025-05-28 | C70: =YEAR(Data[[#This Row],[Date_abattage]]) -> 2025 | D70: =TEXT(Data[[#This Row],[Date_abattage]],"mmmm") -> mai | E70: =DAY(Data[[#This Row],[Date_abattage]]) -> 28 | F70: 100 | G70: BCS | H70: 5 | I70: 399 | O70: 2200 | P70: 11000 | Q70: 11000 | R70: 0 | S70: 2025-04-10 | T70: Jean
A71: 70 | B71: 2025-05-28 | C71: =YEAR(Data[[#This Row],[Date_abattage]]) -> 2025 | D71: =TEXT(Data[[#This Row],[Date_abattage]],"mmmm") -> mai | E71: =DAY(Data[[#This Row],[Date_abattage]]) -> 28 | F71: 100 | G71: TOUCHARD | H71: 2 | I71: 144.6 | O71: 2200 | P71: 4400 | Q71: 4400 | R71: 0 | S71: 2025-04-11 | T71: Jean
A72: 71 | B72: 2025-05-28 | C72: =YEAR(Data[[#This Row],[Date_abattage]]) -> 2025 | D72: =TEXT(Data[[#This Row],[Date_abattage]],"mmmm") -> mai | E72: =DAY(Data[[#This Row],[Date_abattage]]) -> 28 | F72: 100 | G72: HUGUETTE | H72: 5 | I72: 366.4 | O72: 2200 | P72: 11000 | Q72: 11000 | R72: 0 | S72: 2025-04-12 | T72: Jean
A73: 72 | B73: 2025-05-28 | C73: =YEAR(Data[[#This Row],[Date_abattage]]) -> 2025 | D73: =TEXT(Data[[#This Row],[Date_abattage]],"mmmm") -> mai | E73: =DAY(Data[[#This Row],[Date_abattage]]) -> 28 | F73: 100 | G73: TAITAI | H73: 5 | I73: 362.8 | O73: 2200 | P73: 11000 | Q73: 11000 | R73: 0 | S73: 2025-04-13 | T73: Jean
A74: 73 | B74: 2025-05-28 | C74: =YEAR(Data[[#This Row],[Date_abattage]]) -> 2025 | D74: =TEXT(Data[[#This Row],[Date_abattage]],"mmmm") -> mai | E74: =DAY(Data[[#This Row],[Date_abattage]]) -> 28 | F74: 100 | G74: FLAN | H74: 10 | I74: 739.4 | O74: 2200 | P74: 22000 | Q74: 22000 | R74: 0 | S74: 2025-04-14 | T74: Jean
A75: 74 | B75: 2025-05-28 | C75: =YEAR(Data[[#This Row],[Date_abattage]]) -> 2025 | D75: =TEXT(Data[[#This Row],[Date_abattage]],"mmmm") -> mai | E75: =DAY(Data[[#This Row],[Date_abattage]]) -> 28 | F75: 100 | G75: GID | H75: 25 | I75: 1818.8 | J75: 1804.4 | K75: =+I75-J75 -> 14.4 | L75: =+K75/I75 -> 0.007917308115 | M75: =+H75*200 -> 5000 | N75: =+H75*400 -> 10000 | O75: 2200 | P75: =+(O75*I75)-M75-N75 -> 3986360 | Q75: 3986359.992 | R75: 0.007917310111 | S75: 2025-04-15 | T75: Jean
A76: 75 | B76: 2025-06-07 | C76: =YEAR(Data[[#This Row],[Date_abattage]]) -> 2025 | D76: =TEXT(Data[[#This Row],[Date_abattage]],"mmmm") -> juin | E76: =DAY(Data[[#This Row],[Date_abattage]]) -> 7 | F76: 100 | G76: TAUHET | H76: 30 | I76: 2367 | O76: 2200 | P76: =+H76*O76 -> 66000 | Q76: 66000 | R76: 0 | S76: 2025-04-16 | T76: Jean
A77: 76 | B77: 2025-06-07 | C77: =YEAR(Data[[#This Row],[Date_abattage]]) -> 2025 | D77: =TEXT(Data[[#This Row],[Date_abattage]],"mmmm") -> juin | E77: =DAY(Data[[#This Row],[Date_abattage]]) -> 7 | F77: 20 | G77: FLAN | H77: 10 | I77: 722 | O77: 2200 | P77: 22000 | Q77: 22000 | R77: 0 | S77: 2025-04-17 | T77: Jean
A78: 77 | B78: 2025-06-07 | C78: =YEAR(Data[[#This Row],[Date_abattage]]) -> 2025 | D78: =TEXT(Data[[#This Row],[Date_abattage]],"mmmm") -> juin | E78: =DAY(Data[[#This Row],[Date_abattage]]) -> 7 | F78: 20 | G78: TAITAI | H78: 10 | I78: 721.4 | O78: 2200 | P78: 22000 | Q78: 22000 | R78: 0 | S78: 2025-04-18 | T78: Jean
A79: 78 | B79: 2025-06-07 | C79: =YEAR(Data[[#This Row],[Date_abattage]]) -> 2025 | D79: =TEXT(Data[[#This Row],[Date_abattage]],"mmmm") -> juin | E79: =DAY(Data[[#This Row],[Date_abattage]]) -> 7 | F79: 20 | G79: NAZAIRE | H79: 1 | I79: 73.2 | O79: 2200 | P79: 2200 | Q79: 2200 | R79: 0 | S79: 2025-04-19 | T79: Jean
A80: 79 | B80: 2025-06-07 | C80: =YEAR(Data[[#This Row],[Date_abattage]]) -> 2025 | D80: =TEXT(Data[[#This Row],[Date_abattage]],"mmmm") -> juin | E80: =DAY(Data[[#This Row],[Date_abattage]]) -> 7 | F80: 92 | G80: BAZ | H80: 6 | I80: 426.2 | O80: 2200 | P80: 13200 | Q80: 13200 | R80: 0 | S80: 2025-04-20 | T80: Jean
A81: 80 | B81: 2025-06-07 | C81: =YEAR(Data[[#This Row],[Date_abattage]]) -> 2025 | D81: =TEXT(Data[[#This Row],[Date_abattage]],"mmmm") -> juin | E81: =DAY(Data[[#This Row],[Date_abattage]]) -> 7 | F81: 92 | G81: VANESSA | H81: 3 | I81: 216 | O81: 2200 | P81: =+H81*O81 -> 6600 | Q81: 6600 | R81: =P81-Q81 -> 0 | S81: 2025-04-21 | T81: Jean
A82: 81 | B82: 2025-06-07 | C82: =YEAR(Data[[#This Row],[Date_abattage]]) -> 2025 | D82: =TEXT(Data[[#This Row],[Date_abattage]],"mmmm") -> juin | E82: =DAY(Data[[#This Row],[Date_abattage]]) -> 7 | F82: 92 | G82: NAZAIRE | H82: 1 | I82: 73 | O82: 2200 | P82: 2200 | Q82: 2200 | R82: 0 | S82: 2025-04-22 | T82: Jean
A83: 82 | B83: 2025-06-07 | C83: =YEAR(Data[[#This Row],[Date_abattage]]) -> 2025 | D83: =TEXT(Data[[#This Row],[Date_abattage]],"mmmm") -> juin | E83: =DAY(Data[[#This Row],[Date_abattage]]) -> 7 | F83: 92 | G83: HUGUETTE | H83: 5 | I83: 366.4 | O83: 2200 | P83: 11000 | Q83: 11000 | R83: 0 | S83: 2025-04-23 | T83: Jean
A84: 83 | B84: 2025-06-07 | C84: =YEAR(Data[[#This Row],[Date_abattage]]) -> 2025 | D84: =TEXT(Data[[#This Row],[Date_abattage]],"mmmm") -> juin | E84: =DAY(Data[[#This Row],[Date_abattage]]) -> 7 | F84: 92 | G84: TAITAI | H84: 5 | I84: 365 | O84: 2200 | P84: 11000 | Q84: 11000 | R84: 0 | S84: 2025-04-24 | T84: Jean
A85: 84 | B85: 2025-06-07 | C85: =YEAR(Data[[#This Row],[Date_abattage]]) -> 2025 | D85: =TEXT(Data[[#This Row],[Date_abattage]],"mmmm") -> juin | E85: =DAY(Data[[#This Row],[Date_abattage]]) -> 7 | F85: 92 | G85: VICTORINE | H85: 15 | I85: 1111 | O85: 2200 | P85: 33000 | Q85: 33000 | R85: 0 | S85: 2025-04-25 | T85: Jean
A86: 85 | B86: 2025-06-07 | C86: =YEAR(Data[[#This Row],[Date_abattage]]) -> 2025 | D86: =TEXT(Data[[#This Row],[Date_abattage]],"mmmm") -> juin | E86: =DAY(Data[[#This Row],[Date_abattage]]) -> 7 | F86: 92 | G86: TAUHET | H86: 26 | I86: 2269.8 | O86: 2200 | P86: 57200 | Q86: 57200 | R86: 0 | S86: 2025-04-26 | T86: Jean
A87: 86 | B87: 2025-06-07 | C87: =YEAR(Data[[#This Row],[Date_abattage]]) -> 2025 | D87: =TEXT(Data[[#This Row],[Date_abattage]],"mmmm") -> juin | E87: =DAY(Data[[#This Row],[Date_abattage]]) -> 7 | F87: 92 | G87: GID | H87: 35 | I87: 2928.2 | J87: 2900 | K87: =+I87-J87 -> 28.2 | L87: =+K87/I87 -> 0.009630489721 | M87: =+H87*200 -> 7000 | N87: =+H87*400 -> 14000 | O87: 2200 | P87: =+(O87*I87)-M87-N87 -> 6421040 | Q87: 6414039.99 | R87: 7000.00963 | S87: 2025-04-27 | T87: Jean

Sheet Fitre
B3: ANNEE | C3: 2025 | E3: MOIS | F3: Juin | H3: JOURS | I3: 7
BL4: 1 | BM4: Janvier
BL5: 2 | BM5: Février
BL6: 3 | BM6: Mars
A7: ID_Abattage | B7: Date_abattage | C7: Année | D7: Mois | E7: Jours | F7: Qté_livrée | G7: Acheteur | H7: Qté_carcasses_SIVAC | I7: Poids_net_kg | J7: Poids net GID (kg) 2 | K7: ECART (Kg) | L7: Taux de ressuage | M7: FIRCA | N7: INTER PORCI | O7: Prix_unitaire_FCFA | P7: Prix_global_FCFA | Q7: Avance_FCFA | R7: Reste_a_payer_FCFA | S7: Delai_paiement | T7: Pilote_SICS | BL7: 4 | BM7: Avril
A8: =_xlfn._xlws.FILTER(Data[],(Data[Année]=C3)*(Data[Mois]=F3)*(Data[Jours]=I3),"") -> 75 | B8: 2025-06-07 | C8: 2025 | D8: juin | E8: 7 | F8: 100 | G8: TAUHET | H8: 30 | I8: 2367 | J8: 0 | K8: 0 | L8: 0 | M8: 0 | N8: 0 | O8: 2200 | P8: 66000 | Q8: 66000 | R8: 0 | S8: 45763 | T8: Jean | BL8: 5 | BM8: Mai
A9: 76 | B9: 2025-06-07 | C9: 2025 | D9: juin | E9: 7 | F9: 20 | G9: FLAN | H9: 10 | I9: 722 | J9: 0 | K9: 0 | L9: 0 | M9: 0 | N9: 0 | O9: 2200 | P9: 22000 | Q9: 22000 | R9: 0 | S9: 45764 | T9: Jean | BL9: 6 | BM9: Juin
A10: 77 | B10: 2025-06-07 | C10: 2025 | D10: juin | E10: 7 | F10: 20 | G10: TAITAI | H10: 10 | I10: 721.4 | J10: 0 | K10: 0 | L10: 0 | M10: 0 | N10: 0 | O10: 2200 | P10: 22000 | Q10: 22000 | R10: 0 | S10: 45765 | T10: Jean | BL10: 7 | BM10: Juillet
A11: 78 | B11: 2025-06-07 | C11: 2025 | D11: juin | E11: 7 | F11: 20 | G11: NAZAIRE | H11: 1 | I11: 73.2 | J11: 0 | K11: 0 | L11: 0 | M11: 0 | N11: 0 | O11: 2200 | P11: 2200 | Q11: 2200 | R11: 0 | S11: 45766 | T11: Jean | BL11: 8 | BM11: Août
A12: 79 | B12: 2025-06-07 | C12: 2025 | D12: juin | E12: 7 | F12: 92 | G12: BAZ | H12: 6 | I12: 426.2 | J12: 0 | K12: 0 | L12: 0 | M12: 0 | N12: 0 | O12: 2200 | P12: 13200 | Q12: 13200 | R12: 0 | S12: 45767 | T12: Jean | BL12: 9 | BM12: Septembre
A13: 80 | B13: 2025-06-07 | C13: 2025 | D13: juin | E13: 7 | F13: 92 | G13: VANESSA | H13: 3 | I13: 216 | J13: 0 | K13: 0 | L13: 0 | M13: 0 | N13: 0 | O13: 2200 | P13: 6600 | Q13: 6600 | R13: 0 | S13: 45768 | T13: Jean | BL13: 10 | BM13: Octobre
A14: 81 | B14: 2025-06-07 | C14: 2025 | D14: juin | E14: 7 | F14: 92 | G14: NAZAIRE | H14: 1 | I14: 73 | J14: 0 | K14: 0 | L14: 0 | M14: 0 | N14: 0 | O14: 2200 | P14: 2200 | Q14: 2200 | R14: 0 | S14: 45769 | T14: Jean | BL14: 11 | BM14: Novembre
A15: 82 | B15: 2025-06-07 | C15: 2025 | D15: juin | E15: 7 | F15: 92 | G15: HUGUETTE | H15: 5 | I15: 366.4 | J15: 0 | K15: 0 | L15: 0 | M15: 0 | N15: 0 | O15: 2200 | P15: 11000 | Q15: 11000 | R15: 0 | S15: 45770 | T15: Jean | BL15: 12 | BM15: Décembre
A16: 83 | B16: 2025-06-07 | C16: 2025 | D16: juin | E16: 7 | F16: 92 | G16: TAITAI | H16: 5 | I16: 365 | J16: 0 | K16: 0 | L16: 0 | M16: 0 | N16: 0 | O16: 2200 | P16: 11000 | Q16: 11000 | R16: 0 | S16: 45771 | T16: Jean | BL16: 13
A17: 84 | B17: 2025-06-07 | C17: 2025 | D17: juin | E17: 7 | F17: 92 | G17: VICTORINE | H17: 15 | I17: 1111 | J17: 0 | K17: 0 | L17: 0 | M17: 0 | N17: 0 | O17: 2200 | P17: 33000 | Q17: 33000 | R17: 0 | S17: 45772 | T17: Jean | BL17: 14
A18: 85 | B18: 2025-06-07 | C18: 2025 | D18: juin | E18: 7 | F18: 92 | G18: TAUHET | H18: 26 | I18: 2269.8 | J18: 0 | K18: 0 | L18: 0 | M18: 0 | N18: 0 | O18: 2200 | P18: 57200 | Q18: 57200 | R18: 0 | S18: 45773 | T18: Jean | BL18: 15
A19: 86 | B19: 2025-06-07 | C19: 2025 | D19: juin | E19: 7 | F19: 92 | G19: GID | H19: 35 | I19: 2928.2 | J19: 2900 | K19: 28.2 | L19: 0.009630489721 | M19: 7000 | N19: 14000 | O19: 2200 | P19: 6421040 | Q19: 6414039.99 | R19: 7000.00963 | S19: 45774 | T19: Jean | BL19: 16
BL20: 17
BL21: 18
BL22: 19
BL23: 20
BL24: 21
BL25: 22
BL26: 23
BL27: 24
BL28: 25
BL29: 26
BL30: 27
BL31: 28
BL32: 29
BL33: 30
BL34: 31

Sheet TCD
B2: Chiffre d'affaire GLOBAL | F2: TOP 10 ACHETEURS | G2: CHIFFRE D'AFFAIRE | J2: MOIS | K2: Somme de Qté_livrée | L2: CHIFFRE D'AFFAIRE | N2: MOIS | O2: CHIFFRE D'AFFAIRE | P2: Somme de Prix_global_FCFA2 | R2: ACHETEUR | S2: Somme à payer | T2: Avance | U2: Reste_a_payer | W2: MOIS | X2: Somme de Qté_livrée
B3: 33113240 | F3: TAITAI | G3: 88000 | J3: mars | K3: 248 | L3: 7708600 | N3: 1 | O3: 10732560 | P3: 10732560 | R3: ADOU | S3: 33000 | T3: 33000 | U3: 0 | W3: BAZ | X3: 557 | Z3: =OFFSET(F2,1,0,10,2) -> TAITAI | AA3: 88000 | AC3: =RANK(AA3,$AA$3:$AA$12) -> 10 | AE3: MOIS | AF3: Nombre de Pilote_SICS | AH3: MOIS | AI3: Somme de Qté_livrée
F4: BAZ | G4: 107800 | J4: avril | K4: 1927 | L4: 10204760 | N4: 2 | O4: 1003600 | P4: 1003600 | R4: ALEXIS SOCOCE | S4: 33000 | T4: 33000 | U4: 0 | W4: VANESSA | X4: 555 | Z4: BAZ | AA4: 107800 | AC4: =RANK(AA4,$AA$3:$AA$12) -> 9 | AE4: Jean | AF4: 59 | AH4: BAZ | AI4: 557
F5: FLAN | G5: 121000 | J5: mai | K5: 2789 | L5: 8532440 | N5: 3 | O5: 1640000 | P5: 1640000 | R5: BAZ | S5: 107800 | T5: 107800 | U5: 0 | W5: TAITAI | X5: 546 | Z5: FLAN | AA5: 121000 | AC5: 8 | AE5: Marc | AF5: 12 | AH5: VANESSA | AI5: 555
F6: VICTORINE | G6: 156200 | J6: juin | K6: 896 | L6: 6667440 | N6: 7 | O6: 6667440 | P6: 6667440 | R6: BCS | S6: 50600 | T6: 50600 | U6: 0 | W6: TAUHET | X6: 486 | Z6: VICTORINE | AA6: 156200 | AC6: 7 | AE6: Paul | AF6: 15 | AH6: TAITAI | AI6: 546
B7: Qté_carcasse_SIVAC | F7: TAUHET | G7: 299200 | N7: 8 | O7: 52800 | P7: 52800 | R7: Boucherie | S7: 1500000 | T7: 300000 | U7: 1200000 | W7: GID | X7: 478 | Z7: TAUHET | AA7: 299200 | AC7: 6 | AH7: TAUHET | AI7: 486
B8: 749 | F8: Gros | G8: 840000 | N8: 10 | O8: 920000 | P8: 920000 | R8: FLAN | S8: 121000 | T8: 121000 | U8: 0 | W8: VICTORINE | X8: 475 | Z8: Gros | AA8: 840000 | AC8: 5
F9: Boucherie | G9: 1500000 | N9: 12 | O9: 4196680 | P9: 4196680 | R9: FRANCOIS | S9: 46200 | T9: 46200 | U9: 0 | W9: HUGUETTE | X9: 455 | Z9: Boucherie | AA9: 1500000 | AC9: 4
F10: SOCIAM | G10: 1920000 | N10: 15 | O10: 83600 | P10: 83600 | R10: GID | S10: 24293640 | T10: 24181039.97 | U10: 112600.0332 | W10: FLAN | X10: 403 | Z10: SOCIAM | AA10: 1920000 | AC10: 3
B11: Qtés_livrée | F11: Marché | G11: 3420000 | N11: 16 | O11: 88000 | P11: 88000 | R11: Gros | S11: 840000 | T11: 300000 | U11: 540000 | W11: BCS | X11: 394 | Z11: Marché | AA11: 3420000 | AC11: 2
B12: 5860 | F12: GID | G12: 24293640 | N12: 17 | O12: 1640000 | P12: 1640000 | R12: HUGUETTE | S12: 72600 | T12: 72600 | U12: 0 | W12: FRANCOIS | X12: 383 | Z12: GID | AA12: 24293640 | AC12: 1
N13: 19 | O13: 105200 | P13: 105200 | R13: INNOCENT | S13: 13200 | T13: 13200 | U13: 0 | W13: NAZAIRE | X13: 312
N14: 24 | O14: 1728600 | P14: 1728600 | R14: KONE | S14: 6600 | T14: 6600 | U14: 0 | W14: ADOU | X14: 220
B15: MOIS | C15: Reste_a_payer | D15: Avance_Fr | N15: 25 | O15: 107800 | P15: 107800 | R15: Marché | S15: 3420000 | T15: 750000 | U15: 2670000 | W15: PARFAIT | X15: 163
B16: mars | C16: 5730000 | D16: 1978600 | N16: 28 | O16: 4146960 | P16: 4146960 | R16: NAZAIRE | S16: 15400 | T16: 15400 | U16: 0 | W16: INNOCENT | X16: 142
B17: avril | C17: 7600.007816 | D17: 10197159.99 | R17: PARFAIT | S17: 22000 | T17: 22000 | U17: 0 | W17: TOUCHARD | X17: 100
B18: mai | C18: 98000.01577 | D18: 8434439.984 | R18: PASCAL | S18: 24200 | T18: 24200 | U18: 0 | W18: PASCAL | X18: 71
B19: juin | C19: 7000.00963 | D19: 6660439.99 | R19: SOCIAM | S19: 1920000 | T19: 600000 | U19: 1320000 | W19: Marché | X19: 27
B20: Total général | C20: 5842600.033 | D20: 27270639.97 | R20: TAITAI | S20: 88000 | T20: 88000 | U20: 0 | W20: ALEXIS SOCOCE | X20: 20
R21: TAUHET | S21: 299200 | T21: 299200 | U21: 0 | W21: YAH LOUISE | X21: 20
R22: TOUCHARD | S22: 4400 | T22: 4400 | U22: 0 | W22: KONE | X22: 20
R23: VANESSA | S23: 39600 | T23: 39600 | U23: 0 | W23: SOCIAM | X23: 15
R24: VICTORINE | S24: 156200 | T24: 156200 | U24: 0 | W24: Boucherie | X24: 12
R25: YAH LOUISE | S25: 6600 | T25: 6600 | U25: 0 | W25: Gros | X25: 6

Sheet Tableau de Bord
GT38: TRUE
